bitfinex/quotes_BTCUSD_20220207
["timestamp","ask_amount","ask_price","bid_price","bid_amount"]
[1644230816004,0.06480486,42653.0,42651.0,0.47]
[1644230818857,0.28926132,42654.0,42651.0,0.47]
[1644230819253,0.28914948,42654.0,42651.0,0.47]
[1644230819454,0.0473,42654.0,42651.0,0.47]
[1644230819755,0.33533261,42659.0,42651.0,0.47]
[1644230820054,0.48593126,42659.0,42658.0,0.05]
[1644230820253,0.7785282,42659.0,42658.0,0.05]
[1644230820453,1.01673531,42659.0,42658.0,0.05]
[1644230820653,1.01673531,42659.0,42655.0,0.05]
[1644230820855,1.01673531,42659.0,42652.0,0.05]
[1644230820856,1.16568148,42659.0,42652.0,0.05]
[1644230821056,1.16568148,42659.0,42656.0,0.00067734]
[1644230821255,0.14894617,42658.0,42656.0,0.00067734]
[1644230821903,0.14894617,42658.0,42657.0,0.05]
[1644230822305,0.14894617,42658.0,42655.0,0.00067736]
[1644230822505,0.14894617,42658.0,42657.0,0.05]
[1644230822908,0.72413837,42659.0,42655.0,0.00067736]
[1644230823108,0.27731494,42658.0,42655.0,0.00067736]
[1644230823308,0.27731494,42658.0,42653.0,0.05]
[1644230823510,0.42626111,42658.0,42655.0,0.00067736]
[1644230823709,0.27731494,42658.0,42655.0,0.00067736]
[1644230823911,0.42626111,42658.0,42655.0,0.00067736]
[1644230824112,0.27731494,42658.0,42655.0,0.00067736]
[1644230824310,0.0473,42657.0,42655.0,0.00067736]
[1644230824510,0.0473,42657.0,42653.0,0.05]
[1644230824711,0.0473,42657.0,42656.0,0.05]
[1644230825557,0.0473,42657.0,42654.0,0.00067737]
[1644230825751,0.0473,42657.0,42653.0,0.05]
[1644230825952,0.0473,42657.0,42654.0,0.00067737]
[1644230826955,0.0473,42657.0,42653.0,0.05]
[1644230827156,0.0473,42657.0,42653.0,0.05067738]
[1644230827354,0.058661,42656.0,42653.0,0.05067738]
[1644230827557,0.105961,42656.0,42653.0,0.05067738]
[1644230828055,0.105961,42656.0,42653.0,0.05]
[1644230828959,0.0473,42656.0,42653.0,0.05]
[1644230832311,0.14894617,42658.0,42653.0,0.05]
[1644230832610,0.67683837,42659.0,42657.0,0.05]
[1644230833068,0.67683837,42659.0,42656.0,0.00067735]
[1644230833252,0.95789462,42659.0,42656.0,0.00067735]
[1644230833652,0.14894617,42658.0,42656.0,0.00067735]
[1644230834052,0.67683837,42659.0,42654.0,0.05]
[1644230834252,0.95384398,42659.0,42655.0,0.00067736]
[1644230834456,0.67683837,42659.0,42655.0,0.00067736]
[1644230834652,0.14894617,42658.0,42655.0,0.00067736]
[1644230835051,0.95313061,42659.0,42655.0,0.00067736]
[1644230835251,0.95313061,42659.0,42654.0,0.05]
[1644230835552,0.14894617,42658.0,42655.0,0.05067736]
[1644230835952,0.43863126,42659.0,42655.0,0.05067736]
[1644230836252,0.43863126,42659.0,42656.0,0.05]
[1644230837505,0.43863126,42659.0,42655.0,0.00067736]
[1644230837706,0.43863126,42659.0,42653.0,0.05]
[1644230837906,0.43863126,42659.0,42655.0,0.00067735]
[1644230838912,0.43863126,42659.0,42653.0,0.05]
[1644230839110,0.43863126,42659.0,42658.0,0.05]
[1644230839310,0.35286161,42659.0,42658.0,0.05]
[1644230840564,0.35286161,42659.0,42656.0,0.00067734]
[1644230841357,0.35286161,42659.0,42655.0,0.05]
[1644230841555,0.06542564,42657.0,42655.0,0.05067735]
[1644230842454,0.06542564,42657.0,42655.0,0.05]
[1644230843357,0.06542564,42657.0,42655.0,0.02]
[1644230845512,0.35286161,42659.0,42655.0,0.02]
[1644230845713,0.1277058,42663.0,42658.0,0.02]
[1644230846313,0.0977058,42663.0,42658.0,0.02]
[1644230847113,0.35143455,42661.0,42658.0,0.02]
[1644230847313,0.38143455,42661.0,42658.0,0.02]
[1644230847516,0.35143455,42661.0,42658.0,0.02]
[1644230847715,0.07657314,42660.0,42658.0,0.02]
[1644230849059,0.03,42659.0,42657.0,0.00067734]
[1644230849257,0.07657314,42660.0,42657.0,0.00067734]
[1644230849457,0.07657314,42660.0,42659.0,0.02]
[1644230849957,0.10657314,42660.0,42659.0,0.02]
[1644230850160,0.10657314,42660.0,42657.0,0.00067734]
[1644230850959,0.10657314,42660.0,42658.0,0.02]
[1644230851360,0.10657314,42660.0,42656.0,0.00067734]
[1644230851559,0.03,42658.0,42656.0,0.00067734]
[1644230852208,0.03,42658.0,42650.0,0.01110297]
[1644230852209,0.03889703,42657.0,42650.0,0.01110297]
[1644230852407,0.058657,42658.0,42655.0,0.00067736]
[1644230852604,0.03889703,42656.0,42655.0,0.00067736]
[1644230853305,0.03889703,42656.0,42650.0,0.01110297]
[1644230853505,0.23501779,42657.0,42644.0,0.26478494]
[1644230853506,0.28865294,42653.0,42644.0,0.26478494]
[1644230853707,0.01893202,42650.0,42644.0,0.00026749]
[1644230853906,0.01893202,42650.0,42636.0,0.42201968]
[1644230854106,0.01893202,42650.0,42637.0,0.326782]
[1644230854308,0.01893202,42650.0,42638.0,0.05]
[1644230854506,0.01893202,42650.0,42640.0,0.19903092]
[1644230854707,0.06890645,42643.0,42640.0,0.24903092]
[1644230854906,0.0884594,42643.0,42641.0,0.326782]
[1644230855106,0.0884594,42643.0,42641.0,0.32704949]
[1644230855309,0.0884594,42643.0,42642.0,0.26640666]
[1644230855566,0.0884594,42643.0,42642.0,0.26667415]
[1644230855754,0.0884594,42643.0,42642.0,0.31640666]
[1644230855955,0.0884594,42643.0,42642.0,0.05]
[1644230856157,0.2050247,42649.0,42642.0,0.27218462]
[1644230856357,0.01893202,42650.0,42642.0,0.05]
[1644230856557,0.01893202,42650.0,42643.0,0.26516666]
[1644230856757,0.01893202,42650.0,42643.0,0.31516666]
[1644230857157,0.01893202,42650.0,42644.0,0.00067747]
[1644230857356,0.01893202,42650.0,42644.0,0.00094496]
[1644230857556,0.25722273,42649.0,42644.0,0.00094496]
[1644230858157,0.25722273,42649.0,42644.0,0.00026749]
[1644230858357,0.06704433,42649.0,42644.0,0.00067747]
[1644230858557,0.06704433,42649.0,42644.0,0.00094496]
[1644230859409,0.06704433,42649.0,42644.0,0.00026749]
[1644230859610,0.06704433,42649.0,42644.0,0.00067747]
[1644230859910,0.06704433,42649.0,42644.0,0.00094496]
[1644230860513,0.06704433,42649.0,42644.0,0.00026749]
[1644230860710,0.06704433,42649.0,42644.0,0.00067747]
[1644230860910,0.06704433,42649.0,42644.0,0.00094496]
[1644230861812,0.06704433,42649.0,42644.0,0.00026749]
[1644230862010,0.06704433,42649.0,42644.0,0.00067747]
[1644230862213,0.06704433,42649.0,42644.0,0.00094496]
[1644230864158,0.06704433,42649.0,42644.0,0.00026749]
[1644230864357,0.06704433,42649.0,42644.0,0.00067747]
[1644230864558,0.06704433,42649.0,42644.0,0.00094496]
[1644230865359,0.06704433,42649.0,42644.0,0.00026749]
[1644230865561,0.06704433,42649.0,42643.0,0.26675862]
[1644230865857,0.06704433,42649.0,42643.0,0.26649113]
[1644230866057,0.06704433,42649.0,42643.0,0.26675808]
[1644230867908,0.06704433,42649.0,42644.0,0.00067461]
[1644230868110,0.06704433,42649.0,42644.0,0.00094156]
[1644230868308,0.11704433,42649.0,42644.0,0.00094156]
[1644230868512,0.3,42648.0,42644.0,0.00067461]
[1644230868711,0.05,42645.0,42644.0,0.00067461]
[1644230868921,0.05,42645.0,42639.0,0.01925162]
[1644230868922,0.3973,42645.0,42639.0,0.01925162]
[1644230869114,0.0473,42645.0,42640.0,0.00026695]
[1644230869312,0.61618436,42640.0,42639.0,0.01898467]
[1644230869510,0.66348436,42640.0,42639.0,0.01898467]
[1644230869709,0.76348436,42640.0,42639.0,0.01898467]
[1644230870311,0.76348436,42640.0,42631.0,0.00026695]
[1644230870581,0.76348436,42640.0,42630.0,0.02018567]
[1644230870582,1.06348436,42640.0,42630.0,0.02018567]
[1644230870773,1.06348436,42640.0,42630.0,0.01991872]
[1644230870968,0.19894617,42639.0,42630.0,0.01991872]
[1644230871168,0.117372,42632.0,42630.0,0.01991872]
[1644230871367,0.1924869,42632.0,42630.0,0.01991872]
[1644230872368,0.1924869,42632.0,42629.0,0.00026695]
[1644230872568,0.1924869,42632.0,42628.0,0.6863637]
[1644230872770,0.1924869,42632.0,42629.0,0.00066996]
[1644230873068,0.1924869,42632.0,42629.0,0.00093691]
[1644230873069,0.0751149,42632.0,42629.0,0.00093691]
[1644230873669,0.058678,42631.0,42629.0,0.00093691]
[1644230873872,0.058678,42631.0,42629.0,0.00026695]
[1644230874069,0.0751149,42632.0,42628.0,0.73703366]
[1644230874908,0.0751149,42632.0,42628.0,0.7363637]
[1644230875208,0.0751149,42632.0,42628.0,0.73703367]
[1644230876008,0.0751149,42632.0,42628.0,0.68730062]
[1644230876209,0.0751149,42632.0,42628.0,0.6863637]
[1644230876411,0.0751149,42632.0,42628.0,0.68703367]
[1644230876609,0.0751149,42632.0,42628.0,0.94947904]
[1644230876810,0.0751149,42632.0,42628.0,0.68703367]
[1644230877410,0.0751149,42632.0,42628.0,0.6863637]
[1644230877712,0.1924779,42632.0,42628.0,0.68703367]
[1644230877914,0.117375,42631.0,42628.0,0.68703367]
[1644230878565,0.34351525,42630.0,42628.0,0.6863637]
[1644230878864,0.46089125,42630.0,42628.0,0.6863637]
[1644230879062,0.45589125,42630.0,42628.0,0.68663065]
[1644230880062,0.45589125,42630.0,42628.0,0.6863637]
[1644230880265,0.50589125,42630.0,42628.0,0.63663065]
[1644230880465,0.55319125,42630.0,42628.0,0.63663065]
[1644230881267,0.55319125,42630.0,42628.0,0.6363637]
[1644230881562,0.55319125,42630.0,42628.0,0.63663065]
[1644230882406,0.55319125,42630.0,42628.0,0.6363637]
[1644230882607,0.55319125,42630.0,42628.0,0.63663065]
[1644230883209,0.50319125,42630.0,42628.0,0.63663065]
[1644230883609,0.50319125,42630.0,42628.0,0.6363637]
[1644230883810,0.05,42629.0,42628.0,0.63663065]
[1644230884913,0.117377,42629.0,42628.0,0.9363637]
[1644230885112,0.117374,42632.0,42628.0,1.3631457]
[1644230885113,0.058683,42632.0,42628.0,1.3631457]
[1644230885315,0.01824043,42638.0,42629.0,0.32704895]
[1644230885766,0.01824043,42638.0,42630.0,0.23231359]
[1644230885967,0.01824043,42638.0,42637.0,0.25688219]
[1644230886164,0.01824043,42638.0,42637.0,0.63366419]
[1644230886363,0.08745805,42644.0,42637.0,0.35688219]
[1644230886564,0.08745805,42644.0,42637.0,0.05]
[1644230886763,0.08745805,42644.0,42629.0,0.1]
[1644230886764,0.08745805,42644.0,42630.0,0.00026695]
[1644230886964,0.08745805,42644.0,42629.0,0.05]
[1644230886965,0.05,42637.0,42632.0,0.00026695]
[1644230887167,0.05,42635.0,42629.0,0.00026695]
[1644230887363,0.05,42635.0,42628.0,0.75813011]
[1644230887765,0.07097082,42631.0,42628.0,0.96076339]
[1644230887967,0.05868,42636.0,42628.0,0.96076339]
[1644230888169,0.117366,42643.0,42628.0,0.96076339]
[1644230888170,0.3,42642.0,42628.0,0.96076339]
[1644230888366,0.05,42642.0,42630.0,0.05067091]
[1644230888573,0.31954022,42644.0,42630.0,0.05067091]
[1644230888768,0.05,42639.0,42630.0,0.00067091]
[1644230889066,0.06636765,42632.0,42630.0,0.00067091]
[1644230889309,0.06636765,42632.0,42630.0,0.32745291]
[1644230889510,0.25237841,42639.0,42630.0,0.326782]
[1644230889712,0.25237841,42639.0,42629.0,0.00093788]
[1644230889912,0.05,42638.0,42629.0,0.00067093]
[1644230890111,0.32684764,42638.0,42629.0,0.00093788]
[1644230890315,0.058684,42635.0,42629.0,0.00093788]
[1644230890711,0.058684,42635.0,42629.0,0.00026695]
[1644230890911,0.058684,42635.0,42630.0,0.00067091]
[1644230891114,0.06303955,42634.0,42630.0,0.00067091]
[1644230891512,0.05991477,42634.0,42630.0,0.00067091]
[1644230891913,0.05991477,42634.0,42629.0,0.00026695]
[1644230892114,0.05991477,42634.0,42630.0,0.00067091]
[1644230893976,0.05,42632.0,42630.0,0.00067091]
[1644230894376,0.05,42632.0,42629.0,0.00093788]
[1644230894377,0.058688,42631.0,42629.0,0.00093788]
[1644230894576,0.058688,42631.0,42629.0,0.00067093]
[1644230894775,0.058688,42631.0,42629.0,0.00093788]
[1644230894978,0.33812326,42631.0,42629.0,0.00093788]
[1644230895179,0.058688,42631.0,42629.0,0.00093788]
[1644230895379,0.07758632,42639.0,42630.0,0.326782]
[1644230895578,0.07758632,42639.0,42630.0,0.00026695]
[1644230895777,0.07758632,42639.0,42629.0,0.18782571]
[1644230895976,0.07758632,42639.0,42628.0,0.69158009]
[1644230896179,0.20644529,42638.0,42628.0,0.71278732]
[1644230896576,0.20644529,42638.0,42628.0,0.71211638]
[1644230896807,0.20644529,42638.0,42631.0,0.0006709]
[1644230897210,0.05,42635.0,42631.0,0.0006709]
[1644230897812,0.20644529,42638.0,42630.0,0.00026695]
[1644230898011,0.20644529,42638.0,42629.0,0.20734244]
[1644230898211,0.058674,42639.0,42631.0,0.0006709]
[1644230899112,0.058674,42639.0,42630.0,0.00026695]
[1644230899313,0.25976405,42638.0,42633.0,0.00067088]
[1644230900212,0.25976405,42638.0,42630.0,0.00026695]
[1644230900570,0.25976405,42638.0,42629.0,0.24526707]
[1644230901164,0.25976405,42638.0,42629.0,0.00026695]
[1644230901364,0.25976405,42638.0,42628.0,0.5454546]
[1644230902164,0.05,42629.0,42628.0,0.5454546]
[1644230902765,0.12313189,42631.0,42628.0,0.5454546]
[1644230902964,0.20394637,42630.0,42628.0,0.5454546]
[1644230903967,0.058686,42631.0,42628.0,0.5454546]
[1644230904321,0.27526264,42634.0,42628.0,0.5954546]
[1644230904517,0.31621365,42637.0,42628.0,0.54572155]
[1644230904718,0.05,42633.0,42628.0,0.54572155]
[1644230905119,0.24340673,42632.0,42628.0,0.54572155]
[1644230905318,0.24340673,42632.0,42628.0,0.54612611]
[1644230905722,0.31416737,42632.0,42628.0,0.64612611]
[1644230905922,0.36621365,42637.0,42628.0,0.64612611]
[1644230906119,0.05,42637.0,42628.0,0.64612611]
[1644230906320,0.05,42637.0,42628.0,0.6454546]
[1644230906518,0.05,42637.0,42630.0,0.00067148]
[1644230906923,0.41746083,42637.0,42630.0,0.00067148]
[1644230907118,0.2574913,42631.0,42630.0,0.00067148]
[1644230907520,0.2574913,42631.0,42629.0,0.00026695]
[1644230907723,0.2574913,42631.0,42628.0,0.59612611]
[1644230908612,0.2574913,42631.0,42628.0,0.5954546]
[1644230909010,0.2574913,42631.0,42628.0,0.59572155]
[1644230909614,0.05,42637.0,42628.0,0.59572155]
[1644230909813,0.02075475,42638.0,42629.0,0.28081228]
[1644230910016,0.02075475,42638.0,42630.0,0.32745348]
[1644230910219,0.02075475,42638.0,42631.0,0.0473]
[1644230910413,0.02075475,42638.0,42632.0,0.626782]
[1644230910612,0.01914527,42645.0,42636.0,0.2538871]
[1644230910812,0.08880312,42644.0,42636.0,0.3038871]
[1644230911219,0.08880312,42644.0,42638.0,0.0006714]
[1644230911415,0.01914527,42645.0,42638.0,0.0006714]
[1644230912219,0.01914527,42645.0,42637.0,0.27990877]
[1644230912220,0.05,42644.0,42637.0,0.27990877]
[1644230912416,0.05,42644.0,42639.0,0.00067139]
[1644230912617,0.06722675,42643.0,42639.0,0.00067139]
[1644230913017,0.05,42644.0,42639.0,0.00067139]
[1644230913219,0.01819588,42647.0,42639.0,0.00067139]
[1644230913418,0.01819588,42647.0,42637.0,0.32990877]
[1644230913616,0.01819588,42647.0,42639.0,0.00067139]
[1644230913818,0.01819588,42647.0,42640.0,0.22978747]
[1644230914020,0.09610971,42647.0,42641.0,0.29050491]
[1644230914220,0.01819588,42647.0,42641.0,0.29050491]
[1644230914418,0.05,42649.0,42641.0,0.29050491]
[1644230914723,0.02017696,42648.0,42641.0,0.29050491]
[1644230914918,0.02017696,42648.0,42643.0,0.00067135]
[1644230916062,0.02017696,42648.0,42643.0,0.00067134]
[1644230916562,0.05,42649.0,42643.0,0.00067134]
[1644230916764,0.70386456,42651.0,42643.0,0.00067134]
[1644230917267,0.05,42649.0,42645.0,0.00067172]
[1644230917663,0.1188108,42649.0,42645.0,0.00067172]
[1644230917863,0.05,42649.0,42645.0,0.00067172]
[1644230918264,0.05,42650.0,42641.0,0.28621017]
[1644230918464,0.05,42650.0,42645.0,0.00067172]
[1644230919064,0.25056456,42651.0,42645.0,0.00067172]
[1644230919317,0.05,42649.0,42645.0,0.00067172]
[1644230919518,0.05,42649.0,42640.0,0.32978747]
[1644230919720,0.25056456,42651.0,42646.0,0.00067171]
[1644230919721,0.30056456,42651.0,42646.0,0.00067171]
[1644230920321,0.37660956,42648.0,42646.0,0.00067171]
[1644230920519,0.43527456,42648.0,42646.0,0.00067171]
[1644230920819,0.06493131,42644.0,42640.0,0.27978747]
[1644230921420,0.25946185,42644.0,42640.0,0.05]
[1644230921622,0.108673,42643.0,42640.0,0.05]
[1644230921820,0.108673,42643.0,42637.0,0.01868443]
[1644230922020,0.108673,42643.0,42640.0,0.00067177]
[1644230923072,0.108673,42643.0,42635.0,0.31172966]
[1644230923270,0.108673,42643.0,42639.0,0.00067178]
[1644230924267,0.108673,42643.0,42633.0,0.00026695]
[1644230924467,0.108673,42643.0,42639.0,0.00067178]
[1644230925470,0.108673,42643.0,42633.0,0.30968174]
[1644230925669,0.058673,42643.0,42639.0,0.00067178]
[1644230925869,0.05,42641.0,42639.0,0.00067178]
[1644230926673,0.05,42641.0,42633.0,0.30968174]
[1644230926915,0.05,42641.0,42638.0,0.0006718]
[1644230927317,0.59210003,42648.0,42638.0,0.0006718]
[1644230927318,0.01918208,42648.0,42639.0,0.75]
[1644230927520,0.14034006,42659.0,42642.0,0.05]
[1644230927723,0.14034006,42659.0,42641.0,0.75]
[1644230927724,0.00067143,42661.0,42646.0,0.5906]
[1644230927919,0.16835803,42671.0,42647.0,1.64596408]
[1644230928121,1.0709,42676.0,42647.0,0.69326408]
[1644230928323,0.00021504,42661.0,42653.0,0.21474291]
[1644230928521,0.00021504,42661.0,42654.0,0.432711]
[1644230928719,0.00021504,42661.0,42656.0,0.326782]
[1644230928922,0.00021504,42661.0,42658.0,0.326782]
[1644230929126,0.07926415,42666.0,42659.0,0.0473]
[1644230929420,0.00021508,42661.0,42660.0,0.326782]
[1644230929822,0.00021508,42661.0,42660.0,0.05]
[1644230930326,0.26062927,42662.0,42648.0,0.6872]
[1644230930583,0.05,42658.0,42654.0,0.00067222]
[1644230931169,0.3216307,42659.0,42654.0,0.00067222]
[1644230931370,0.03682999,42658.0,42654.0,0.00067222]
[1644230931568,0.03682999,42658.0,42651.0,0.21247144]
[1644230931772,0.00067209,42661.0,42654.0,0.01384221]
[1644230932771,0.02022196,42666.0,42654.0,0.01317001]
[1644230932976,0.0006721,42661.0,42654.0,0.01384221]
[1644230933970,0.20635878,42664.0,42654.0,0.01384221]
[1644230933971,0.20635878,42664.0,42654.0,0.01317001]
[1644230934171,0.0006721,42661.0,42654.0,0.01384221]
[1644230935017,0.20635878,42664.0,42653.0,0.05]
[1644230935216,0.20635878,42664.0,42654.0,0.01317001]
[1644230935415,0.0006721,42661.0,42654.0,0.01384221]
[1644230936218,0.20635878,42664.0,42654.0,0.01317001]
[1644230936219,0.4900792,42664.0,42654.0,0.01317001]
[1644230936416,0.03682999,42661.0,42654.0,0.01317001]
[1644230936616,0.03750209,42661.0,42654.0,0.01384221]
[1644230937116,0.06343522,42658.0,42654.0,0.01384221]
[1644230937517,0.06343522,42658.0,42654.0,0.01317001]
[1644230937716,0.06343522,42658.0,42654.0,0.01384221]
[1644230937917,0.06343522,42658.0,42654.0,0.0006722]
[1644230938666,0.22656309,42664.0,42652.0,0.01317001]
[1644230938866,0.00067209,42661.0,42654.0,0.0006722]
[1644230939865,0.0670431,42662.0,42652.0,0.01317001]
[1644230940167,0.00021508,42661.0,42652.0,0.01317001]
[1644230940867,0.00021508,42661.0,42657.0,0.01317001]
[1644230941070,0.01858856,42667.0,42658.0,0.326782]
[1644230941270,0.01858856,42667.0,42657.0,0.01317001]
[1644230941471,0.00021508,42661.0,42657.0,0.01317001]
[1644230942319,0.07596075,42662.0,42654.0,0.01317001]
[1644230942517,0.21545467,42661.0,42654.0,0.0138428]
[1644230943518,0.214782,42661.0,42654.0,0.01317001]
[1644230943715,0.21545467,42661.0,42654.0,0.00067278]
[1644230944115,0.00067267,42661.0,42654.0,0.00067278]
[1644230944316,0.00067267,42661.0,42654.0,0.01384279]
[1644230944717,0.02136274,42663.0,42654.0,0.01317001]
[1644230945018,0.00067267,42661.0,42654.0,0.01384279]
[1644230945217,0.227858,42661.0,42654.0,0.01384279]
[1644230945418,0.3173943,42661.0,42654.0,0.01384279]
[1644230945666,0.227858,42661.0,42654.0,0.01384279]
[1644230945873,0.22718533,42661.0,42654.0,0.01317001]
[1644230946069,0.22718533,42661.0,42654.0,0.01380259]
[1644230946267,0.22776638,42661.0,42654.0,0.01380259]
[1644230946968,0.22776638,42661.0,42655.0,0.01317001]
[1644230947172,0.02141033,42663.0,42655.0,0.01317001]
[1644230947370,0.00058105,42661.0,42655.0,0.01317001]
[1644230948269,0.02141033,42663.0,42651.0,0.24930143]
[1644230948471,0.00058105,42661.0,42655.0,0.01317001]
[1644230949168,0.00049103,42661.0,42654.0,0.00063258]
[1644230949614,0.02141033,42663.0,42652.0,0.02835203]
[1644230950814,0.28547079,42665.0,42656.0,0.00034998]
[1644230951018,0.00059582,42661.0,42656.0,0.00034998]
[1644230951917,0.28547079,42665.0,42656.0,0.00034998]
[1644230951918,0.63808398,42665.0,42656.0,0.00034998]
[1644230952114,0.00059583,42661.0,42656.0,0.00034998]
[1644230953072,0.32230078,42665.0,42652.0,0.01317001]
[1644230953265,0.37764872,42664.0,42652.0,0.01317001]
[1644230953465,0.00059583,42661.0,42655.0,0.00063708]
[1644230954266,0.03682999,42658.0,42647.0,0.01317001]
[1644230954471,0.28110951,42663.0,42649.0,0.0201616]
[1644230954472,0.03682999,42650.0,42649.0,0.0201616]
[1644230954673,0.2398353,42650.0,42649.0,0.0201616]
[1644230955068,0.20300531,42650.0,42649.0,0.0201616]
[1644230956068,0.2398353,42650.0,42649.0,0.0201616]
[1644230956666,0.2398353,42650.0,42640.0,0.03176363]
[1644230956920,0.20300531,42650.0,42640.0,0.03176363]
[1644230957122,0.20300531,42650.0,42645.0,0.01317001]
[1644230957320,0.07831858,42649.0,42645.0,0.01317001]
[1644230957522,0.07831858,42649.0,42642.0,0.27320436]
[1644230957823,0.07831858,42649.0,42645.0,0.01317001]
[1644230959320,0.07831858,42649.0,42645.0,0.01383029]
[1644230960323,0.07831858,42649.0,42642.0,0.36003435]
[1644230960572,0.07831858,42649.0,42645.0,0.00066028]
[1644230961566,0.07831858,42649.0,42642.0,0.36003435]
[1644230961768,0.07831858,42649.0,42645.0,0.00063291]
[1644230962668,0.07831858,42649.0,42642.0,0.36003435]
[1644230962869,0.07831858,42649.0,42645.0,0.00063291]
[1644230963670,0.07831858,42649.0,42645.0,0.01380292]
[1644230963874,0.07831858,42649.0,42645.0,0.01317001]
[1644230964070,0.07831858,42649.0,42645.0,0.01380292]
[1644230965120,0.07831858,42649.0,42637.0,0.03142183]
[1644230965322,0.25917885,42648.0,42645.0,0.00063641]
[1644230965520,0.03682999,42646.0,42645.0,0.00063641]
[1644230965720,0.42862915,42646.0,42645.0,0.00063641]
[1644230966120,0.70500963,42646.0,42645.0,0.00063641]
[1644230966320,0.70500963,42646.0,42637.0,0.01825182]
[1644230966524,0.29085,42639.0,42637.0,0.01825182]
[1644230966721,0.33815,42639.0,42637.0,0.01825182]
[1644230967321,0.33815,42639.0,42636.0,0.02078099]
[1644230967521,0.33815,42639.0,42636.0,0.02104794]
[1644230967921,0.33815,42639.0,42636.0,0.02078099]
[1644230969366,0.33815,42639.0,42635.0,0.00092673]
[1644230969866,0.03682999,42638.0,42635.0,0.00092673]
[1644230970066,0.33815,42639.0,42634.0,0.00026695]
[1644230970268,0.33815,42639.0,42635.0,0.00065978]
[1644230970667,0.18095644,42645.0,42636.0,0.19386329]
[1644230970868,0.01977069,42644.0,42640.0,0.01317001]
[1644230971567,0.01977069,42644.0,42640.0,0.01382974]
[1644230972021,0.01977069,42644.0,42640.0,0.00065973]
[1644230972223,0.01977069,42644.0,42640.0,0.01382974]
[1644230972521,0.01977069,42644.0,42640.0,0.01380241]
[1644230972721,0.2208951,42645.0,42640.0,0.01380241]
[1644230973622,0.2208951,42645.0,42637.0,0.01317001]
[1644230973823,0.2208951,42645.0,42640.0,0.00063239]
[1644230973824,0.03682999,42643.0,42640.0,0.00063239]
[1644230974023,0.03682999,42643.0,42640.0,0.00056517]
[1644230974425,0.2208951,42645.0,42640.0,0.00056517]
[1644230974824,0.06831981,42646.0,42637.0,0.01317001]
[1644230975023,0.06831981,42646.0,42637.0,0.27916275]
[1644230975767,0.03682999,42638.0,42637.0,0.01317001]
[1644230975971,0.03682999,42638.0,42632.0,0.00026695]
[1644230976168,0.03682999,42638.0,42631.0,0.02149022]
[1644230976366,0.03682999,42638.0,42631.0,0.02122327]
[1644230976568,0.22787909,42636.0,42631.0,0.02122327]
[1644230976767,0.22787909,42636.0,42629.0,0.25583458]
[1644230976972,0.22787909,42636.0,42629.0,0.25556763]
[1644230977169,0.082991,42633.0,42629.0,0.35583458]
[1644230977367,0.082991,42633.0,42630.0,0.32741834]
[1644230977567,0.082991,42633.0,42630.0,0.32768529]
[1644230977768,0.22787909,42636.0,42630.0,0.32768529]
[1644230977967,0.33695258,42640.0,42630.0,0.32768529]
[1644230978168,0.33695258,42640.0,42632.0,0.01317001]
[1644230978567,0.33695258,42640.0,42633.0,0.00063631]
[1644230978968,0.33695258,42640.0,42633.0,0.00090326]
[1644230979419,0.2442601,42640.0,42633.0,0.00090326]
[1644230979623,0.07554952,42637.0,42633.0,0.00026695]
[1644230979818,0.07554952,42637.0,42634.0,0.00063537]
[1644230980718,0.07554952,42637.0,42630.0,0.00026695]
[1644230980919,0.07554952,42637.0,42633.0,0.00063538]
[1644230982022,0.07554952,42637.0,42631.0,0.00026695]
[1644230982222,0.07554952,42637.0,42633.0,0.00063539]
[1644230982621,0.11237951,42637.0,42633.0,0.00063539]
[1644230983285,0.11237951,42637.0,42630.0,0.00026695]
[1644230983485,0.07554952,42637.0,42633.0,0.00063552]
[1644230983686,0.11237951,42637.0,42633.0,0.00063552]
[1644230983884,0.11237951,42637.0,42633.0,0.00090247]
[1644230984384,0.11237951,42637.0,42630.0,0.00026695]
[1644230984586,0.11237951,42637.0,42633.0,0.00063552]
[1644230985587,0.11237951,42637.0,42631.0,0.00026695]
[1644230985787,0.11237951,42637.0,42633.0,0.00063552]
[1644230985986,0.20925167,42634.0,42633.0,0.00063552]
[1644230986837,0.20925167,42634.0,42631.0,0.326782]
[1644230987035,0.20925167,42634.0,42631.0,0.32741752]
[1644230987337,0.20925167,42634.0,42633.0,0.326782]
[1644230987634,0.20925167,42634.0,42632.0,0.00026695]
[1644230987834,0.20925167,42634.0,42631.0,0.00090247]
[1644230988135,0.20925167,42634.0,42631.0,0.32741752]
[1644230988335,0.20925167,42634.0,42632.0,0.05]
[1644230988835,0.20925167,42634.0,42631.0,0.00063552]
[1644230989336,0.20925167,42634.0,42631.0,0.326782]
[1644230989535,0.24608166,42634.0,42632.0,0.05]
[1644230989735,0.24608166,42634.0,42633.0,0.326782]
[1644230989937,0.20925167,42634.0,42633.0,0.326782]
[1644230990134,0.20925167,42634.0,42632.0,0.06317001]
[1644230990335,0.20925167,42634.0,42632.0,0.01317001]
[1644230992169,0.20925167,42634.0,42631.0,0.00063553]
[1644230992370,0.20925167,42634.0,42632.0,0.326782]
[1644230992572,0.20925167,42634.0,42632.0,0.376782]
[1644230993471,0.07554952,42637.0,42632.0,0.376782]
[1644230993671,0.07554952,42637.0,42632.0,0.05026695]
[1644230994072,0.07554952,42637.0,42632.0,0.00026695]
[1644230994315,0.07554952,42637.0,42632.0,0.00063551]
[1644230994716,0.22390547,42636.0,42632.0,0.00063551]
[1644230995119,0.19539925,42636.0,42631.0,0.00026695]
[1644230995316,0.19539925,42636.0,42629.0,0.00026695]
[1644230995317,0.07219781,42630.0,42629.0,0.00026695]
[1644230995616,0.07219781,42630.0,42629.0,0.326782]
[1644230995815,0.07219781,42630.0,42629.0,0.58972438]
[1644230996017,0.19539925,42636.0,42629.0,0.58972438]
[1644230996215,0.19539925,42636.0,42629.0,0.58999133]
[1644230996617,0.19539925,42636.0,42630.0,0.00063553]
[1644230996817,0.19539925,42636.0,42630.0,0.00090248]
[1644230997217,0.07031374,42635.0,42630.0,0.00090248]
[1644230997417,0.07031374,42635.0,42630.0,0.00063553]
[1644230998771,0.07031374,42635.0,42629.0,0.00026695]
[1644230998971,0.07031374,42635.0,42630.0,0.00063553]
[1644230999373,0.03682999,42632.0,42630.0,0.00063553]
[1644230999972,0.03682999,42632.0,42629.0,0.00026695]
[1644231000277,0.03682999,42632.0,42629.0,0.00063555]
[1644231000472,0.03682999,42632.0,42629.0,0.0009025]
[1644231000874,0.32679888,42634.0,42629.0,0.0009025]
[1644231001174,0.32679888,42634.0,42629.0,0.00026695]
[1644231001377,0.03682999,42634.0,42629.0,0.00063591]
[1644231001574,0.03682999,42634.0,42629.0,0.00090286]
[1644231002419,0.03682999,42634.0,42629.0,0.00026695]